fUSD/lending_fUSD_20251120
["ID","MTS","AMOUNT","RATE_DAILY","PERIOD"]
[394467876,1763610638405,-165.05964437,0.00017295,2]
[394467877,1763610638501,-4265.63790927,0.00017295,2]
[394467878,1763610638512,-538245.9039305,0.00017295,2]
[394467879,1763610638522,-208.14193169,0.00017299,2]
[394467880,1763610638531,-162.0,0.000173,2]
[394467881,1763610638541,-162.0,0.000173,2]
[394467882,1763610638550,-162.0,0.000173,2]
[394467883,1763610638560,-161.65,0.000173,2]
[394467884,1763610638570,-166.66,0.00017342,2]
[394467885,1763610638579,-1033.42195331,0.00017355,2]
[394467886,1763610638589,-9719.73100933,0.00017355,2]
[394467887,1763610638598,-1295.287,0.00017371,2]
[394467888,1763610638607,-171.249,0.00017371,2]
[394467889,1763610638616,-218.67400939,0.00017379,2]
[394467890,1763610638625,-1512.8865,0.00017394,2]
[394467891,1763610638634,-550.0,0.00017394,2]
[394467892,1763610638645,-1000.0,0.00017395,2]
[394467893,1763610638654,-208.14193169,0.00017399,2]
[394467895,1763610638664,-8505.50365799,0.00017412,2]
[394467896,1763610638674,-1033.42195331,0.00017433,2]
[394467899,1763610638691,-9719.73100933,0.00017433,2]
[394467900,1763610638701,-8505.50365792,0.00017466,2]
[394467902,1763610638710,-503.51149175,0.00017473,2]
[394467904,1763610638719,-500.0,0.00017473,2]
[394467907,1763610638738,-501.53350493,0.00017473,2]
[394467909,1763610638750,-500.0,0.00017473,2]
[394467911,1763610638760,-500.0,0.00017473,2]
[394467913,1763610638769,-500.0,0.00017473,2]
[394467915,1763610638779,-500.60626497,0.00017473,2]
[394467917,1763610638789,-500.0,0.00017473,2]
[394467919,1763610638799,-500.0,0.00017494,2]
[394467921,1763610638809,-500.0,0.00017494,2]
[394467923,1763610638820,-500.0,0.00017494,2]
[394467925,1763610638830,-500.0,0.00017494,2]
[394467927,1763610638840,-500.0,0.00017494,2]
[394467929,1763610638849,-500.0,0.00017494,2]
[394467931,1763610638859,-811.7,0.00017494,2]
[394467933,1763610638869,-811.7,0.00017494,2]
[394467935,1763610638878,-811.7,0.00017494,2]
[394467937,1763610638888,-500.0,0.00017494,2]
[394467939,1763610638898,-500.0,0.00017494,2]
[394467941,1763610638907,-257.73915746,0.00017494,2]
[394467943,1763610638917,-500.0,0.00017494,2]
[394467946,1763610638930,-500.0,0.00017494,2]
[394467948,1763610638939,-500.0,0.00017494,2]
[394467950,1763610638949,-500.0,0.00017494,2]
[394467952,1763610638960,-500.0,0.00017494,2]
[394467954,1763610638970,-500.0,0.00017494,2]
[394467956,1763610638979,-208.14193169,0.00017499,2]
[394467958,1763610638990,-1033.42195331,0.00017511,2]
[394467960,1763610639000,-9719.73100933,0.00017511,2]
[394467962,1763610639011,-8505.50365792,0.0001752,2]
[394467964,1763610639021,-8505.50365792,0.00017575,2]
[394467966,1763610639032,-1033.42195331,0.00017588,2]
[394467968,1763610639042,-9719.73100933,0.00017588,2]
[394467970,1763610639053,-1319.0,0.00017595,2]
[394467972,1763610639063,-609.784,0.00017595,2]
[394467974,1763610639073,-575.0,0.00017595,2]
[394467975,1763610639083,-3434.0,0.00017595,2]
[394467978,1763610639093,-1600.0,0.00017595,2]
[394467980,1763610639103,-822.0,0.00017595,2]
[394467982,1763610639114,-1198.197,0.00017595,2]
[394467984,1763610639127,-1256.0,0.00017595,2]
[394467986,1763610639137,-799.021,0.00017595,2]
[394467988,1763610639148,-708.819,0.00017595,2]
[394467990,1763610639158,-1605.0,0.00017595,2]
[394467992,1763610639168,-150.0,0.00017595,2]
[394467994,1763610639178,-208.14193169,0.000176,2]
[394467996,1763610639188,-709.22877794,0.00017617,2]
[394467998,1763610639198,-8505.50365792,0.00017629,2]
[394468000,1763610639208,-315.08513889,0.00017643,2]
[394468002,1763610639218,-166.66,0.00017679,2]
[394468004,1763610639228,-8505.50365792,0.00017683,2]
[394468006,1763610639237,-208.14193169,0.000177,2]
[394468008,1763610639247,-967.22,0.000177,2]
[394468010,1763610639256,-200.34095651,0.00017721,2]
[394468012,1763610639266,-8505.50365792,0.00017737,2]
[394468014,1763610639276,-168.0,0.00017741,2]
[394468016,1763610639285,-168.0,0.00017765,2]
[394468018,1763610639295,-8505.50365792,0.00017792,2]
[394468020,1763610639305,-208.14193169,0.000178,2]
[394468023,1763610639318,-300.0,0.0001782,2]
[394468025,1763610639328,-1409.38834,0.0001782,2]
[394468027,1763610639337,-1000.0,0.00017821,2]
[394468029,1763610639347,-903.59576612,0.00017821,2]
[394468031,1763610639357,-1000.0,0.00017821,2]
[394468033,1763610639366,-653.21806903,0.00017821,2]
[394468035,1763610639375,-8505.50365792,0.00017846,2]
[394468037,1763610639385,-200.0,0.00017855,2]
[394468039,1763610639394,-200.0,0.00017856,2]
[394468041,1763610639404,-500.0,0.00017873,2]
[394468043,1763610639414,-25000.0,0.00017874,3]
[394468045,1763610639423,-25000.0,0.00017882,3]
[394468047,1763610639432,-168.0,0.00017889,2]
[394468067,1763610639651,-25000.0,0.00017891,3]
[394468068,1763610639661,-10309.04130668,0.00017899,2]
[394468069,1763610639671,-500.0,0.00017899,2]
[394468070,1763610639681,-811.7,0.00017899,2]
[394468071,1763610639689,-500.0,0.00017899,2]
[394468072,1763610639698,-10173.06205764,0.000179,2]
[394468073,1763610639708,-162.73406515,0.000179,2]
[394468074,1763610639718,-25000.0,0.000179,3]
[394468075,1763610639730,-1011.0,0.000179,2]
[394468076,1763610639743,-8505.50365792,0.000179,2]
[394468077,1763610639752,-500.37989577,0.000179,2]
[394468078,1763610639762,-515.35190765,0.000179,2]
[394468079,1763610639771,-208.14193169,0.000179,2]
[394468080,1763610639781,-27793.82354216,0.000179,2]
[394468081,1763610639790,-4582.0,0.000179,2]
[394468082,1763610639799,-168.0,0.00017961,2]
[394468083,1763610639810,-193.6806915,0.00017965,2]
[394468084,1763610639821,-250.0,0.00017965,2]
[394468085,1763610639830,-150.83381148,0.00017965,2]
[394468086,1763610639839,-250.0,0.00017965,2]
[394468087,1763610639848,-250.0,0.00017965,2]
[394468088,1763610639859,-150.12675746,0.00017965,2]
[394468089,1763610639869,-300.0,0.00017965,2]
[394468090,1763610639879,-300.0,0.00017965,2]
[394468091,1763610639888,-2690.64356047,0.00017965,4]
[394468092,1763610639897,-300.0,0.00017965,2]
[394468093,1763610639907,-2500.0,0.00017965,2]
[394468094,1763610639916,-503.69110106,0.00017973,2]
[394468095,1763610639926,-500.0,0.00017973,2]
[394468096,1763610639935,-160.73608923,0.00017973,2]
[394468097,1763610639944,-500.0,0.00017973,2]
[394468098,1763610639953,-500.62908268,0.00017973,2]
[394468099,1763610639963,-297.20176291,0.00017973,2]
[394468100,1763610639972,-500.90554177,0.00017973,2]
[394468101,1763610639981,-501.27362339,0.00017973,2]
[394468102,1763610639990,-501.23748106,0.00017973,2]
[394468103,1763610639999,-316.17285237,0.00017973,2]
[394468104,1763610640008,-500.0,0.00017973,2]
[394468105,1763610640018,-500.0,0.00017973,2]
[394468106,1763610640027,-161.60192736,0.00017973,2]
[394468107,1763610640036,-500.0,0.00017973,2]
[394468108,1763610640044,-500.0,0.00017973,2]
[394468109,1763610640054,-500.47789219,0.00017973,2]
[394468110,1763610640063,-500.0,0.00017973,2]
[394468111,1763610640073,-500.0,0.00017973,2]
[394468112,1763610640082,-500.0,0.00017973,2]
[394468113,1763610640092,-500.0,0.00017973,2]
[394468114,1763610640101,-500.60845142,0.00017973,2]
[394468115,1763610640112,-503.86976296,0.00017973,2]
[394468116,1763610640121,-500.0,0.00017973,2]
[394468117,1763610640130,-500.0,0.00017973,2]
[394468118,1763610640139,-572.12173873,0.00017973,2]
[394468119,1763610640150,-500.0,0.00017973,2]
[394468120,1763610640159,-500.0,0.00017973,2]
[394468121,1763610640170,-500.0,0.00017973,2]
[394468122,1763610640179,-500.0,0.00017973,2]
[394468123,1763610640188,-181.63155506,0.00017973,2]
[394468124,1763610640198,-501.23436494,0.00017973,2]
[394468125,1763610640207,-500.0,0.00017973,2]
[394468126,1763610640216,-500.0,0.00017973,2]
[394468127,1763610640225,-500.0,0.00017973,2]
[394468128,1763610640234,-500.0,0.00017973,2]
[394468129,1763610640243,-500.0,0.00017973,2]
[394468130,1763610640252,-500.0,0.00017973,2]
[394468131,1763610640261,-500.0,0.00017973,2]
[394468132,1763610640270,-500.0,0.00017973,2]
[394468133,1763610640280,-1820.68505313,0.00017989,2]
[394468134,1763610640289,-1820.68505313,0.0001799,2]
[394468135,1763610640299,-1820.68505313,0.0001799,2]
[394468136,1763610640308,-407.62088803,0.00017998,2]
[394468137,1763610640317,-500.0,0.00017998,2]
[394468138,1763610640326,-811.7,0.00017998,2]
[394468139,1763610640335,-500.0,0.00017998,2]
[394468140,1763610640344,-500.0,0.00017998,2]
[394468141,1763610640353,-18635.6769726,0.00017999,2]
[394468142,1763610640362,-1172.4798036,0.00017999,2]
[394468143,1763610640371,-148222.3460656,0.00017999,2]
[394468144,1763610640380,-928.4446336,0.00017999,2]
[394468145,1763610640389,-73674.1784938,0.00017999,2]
[394468146,1763610640398,-300.0,0.00017999,2]
[394468147,1763610640407,-630.79318049,0.00017999,2]
[394468148,1763610640416,-811.7,0.00017999,2]
[394468149,1763610640425,-811.7,0.00017999,2]
[394468150,1763610640434,-811.7,0.00017999,2]
[394468151,1763610640443,-811.7,0.00017999,2]
[394468152,1763610640452,-811.7,0.00017999,2]
[394468153,1763610640461,-811.7,0.00017999,2]
[394468154,1763610640471,-811.7,0.00017999,2]
[394468155,1763610640480,-811.7,0.00017999,2]
[394468156,1763610640489,-811.7,0.00017999,2]
[394468157,1763610640499,-811.7,0.00017999,2]
[394468158,1763610640508,-811.7,0.00017999,2]
[394468159,1763610640518,-811.7,0.00017999,2]
[394468160,1763610640527,-811.7,0.00017999,2]
[394468161,1763610640537,-811.7,0.00017999,2]
[394468162,1763610640547,-811.7,0.00017999,2]
[394468163,1763610640556,-811.7,0.00017999,2]
[394468164,1763610640565,-811.7,0.00017999,2]
[394468165,1763610640574,-811.7,0.00017999,2]
[394468166,1763610640584,-811.91299022,0.00017999,2]
[394468167,1763610640594,-300.0,0.00017999,2]
[394468168,1763610640604,-99145.2315721,0.00017999,2]
[394468169,1763610640614,-500.0,0.00017999,2]
[394468170,1763610640623,-500.0,0.00017999,2]
[394468171,1763610640632,-639.05819945,0.00017999,2]
[394468172,1763610640641,-500.0,0.00017999,2]
[394468174,1763610640651,-630.01716056,0.00017999,2]
[394468176,1763610640660,-3181519.00151959,0.00018,2]
[394468180,1763610640750,-977.03840479,0.00017595,2]
[394468182,1763610640761,-551.75042112,0.00017595,2]
[394468184,1763610640773,-4965.21117409,0.00017595,2]
[394468186,1763610640783,-1033.42195331,0.00017666,2]
[394468188,1763610640794,-11128.27755271,0.00018,2]
[394468191,1763610640805,-2732.58303022,0.00018,2]
[394468193,1763610640816,-2904.62131371,0.00018,2]
[394468202,1763610643945,-200.34095651,0.00017543,2]
[394468203,1763610643955,-254.35533471,0.00017666,2]
[394468205,1763610644781,-3140.46238277,0.00017666,2]
[394468206,1763610644794,-333.0375544,0.00017666,2]
[394468207,1763610644833,-5991.87573745,0.00017666,2]
[394468208,1763610644843,-2132.50628358,0.000179,2]
[394468209,1763610644851,-31997.26039994,0.00018,2]
[394468210,1763610644887,-1983.82042451,0.00018,2]
[394468214,1763610646358,-546.752,0.00017744,2]
[394468215,1763610646412,-455.95,0.00017744,2]
[394468216,1763610646466,-30.71995331,0.00017744,2]
[394468217,1763610646476,-693454.12737933,0.00018,2]
[394468218,1763610646487,-179577.65094044,0.00018,2]
[394468219,1763610646680,-1155.51975,0.00018,2]
[394468220,1763610646692,-1434.61950838,0.00018,2]
[394468221,1763610646703,-3563.03959146,0.00018,2]
[394468222,1763610646734,-1001.85872633,0.00018,2]
[394468223,1763610646789,-614.0905448,0.00018,2]
[394468224,1763610646800,-906.655,0.00018,2]
[394468229,1763610681289,2100.0,0.000169,6]
[394468230,1763610683388,4300.0,0.000172,6]
[394468231,1763610685473,6400.0,0.000173,6]
[394468232,1763610687571,4814.66268617,0.000174,6]
[394468233,1763610687596,3785.33731383,0.000174,6]
[394468235,1763610719261,499.99,0.00042065,30]
[394468247,1763611240886,151.0,0.00042067,120]
[394468248,1763611241187,151.0,0.00042067,120]
[394468249,1763611241472,151.0,0.00042067,120]
[394468250,1763611242110,151.0,0.00042067,120]
[394468251,1763611242411,151.0,0.00042067,120]
[394468252,1763611242714,151.0,0.00042067,120]
[394468253,1763611243006,151.0,0.00042067,120]
[394468254,1763611243296,151.0,0.00042067,120]
[394468255,1763611243579,151.0,0.00042067,120]
[394468256,1763611243901,151.0,0.00042067,120]
[394468257,1763611244220,151.0,0.00042067,120]
[394468258,1763611244510,151.0,0.00042067,120]
[394468259,1763611244836,151.0,0.00042067,120]
[394468260,1763611245114,151.0,0.00042067,120]
[394468261,1763611245407,255.825297,0.00042067,120]
[394468275,1763611407587,218.0901264,0.00042067,120]
[394468278,1763611436482,236.5531681,0.00042067,120]
[394468279,1763611509272,2760.35064724,0.00016832,4]
[394468280,1763611539435,602651.06347099,0.00042067,120]
[394468329,1763611631158,1000.0,0.000169,6]
[394468330,1763611633272,2100.0,0.000172,6]
[394468331,1763611635369,3200.0,0.000173,6]
[394468332,1763611637460,4300.0,0.000174,6]
[394468342,1763611710123,768.31,0.00042067,120]
[394468343,1763611710376,768.31,0.00042067,120]
[394468344,1763611710616,768.31,0.00042067,120]
[394468345,1763611710854,768.31,0.00042067,120]
[394468346,1763611711115,768.31,0.00042067,120]
[394468347,1763611711355,768.31,0.00042067,120]
[394468348,1763611711619,768.31,0.00042067,120]
[394468349,1763611712165,768.31,0.00042067,120]
[394468350,1763611712289,768.31,0.00042067,120]
[394468351,1763611712335,768.31,0.00042067,120]
[394468352,1763611712571,768.31,0.00042067,120]
[394468353,1763611712855,768.31,0.00042067,120]
[394468354,1763611713105,768.31,0.00042067,120]
[394468355,1763611713331,768.31,0.00042067,120]
[394468356,1763611713643,768.31,0.00042067,120]
[394468358,1763611713878,768.31,0.00042067,120]
[394468359,1763611714152,768.31,0.00042067,120]
[394468360,1763611714405,768.31,0.00042067,120]
[394468361,1763611714637,768.31,0.00042067,120]
[394468362,1763611714874,768.31,0.00042067,120]
[394468363,1763611715112,768.31,0.00042067,120]
[394468364,1763611715341,768.31,0.00042067,120]
[394468365,1763611715777,768.31,0.00042067,120]
[394468366,1763611716195,768.54623817,0.00042067,120]
[394468385,1763611831588,-150.0,0.00016446,2]
[394468386,1763611831597,-300.0,0.00016543,2]
[394468387,1763611831607,-300.0,0.00016639,2]
[394468388,1763611831616,-1000.0,0.00016831,2]
[394468389,1763611831625,-1200.0,0.00016991,2]
[394468390,1763611831635,-6903.60903288,0.00016992,2]
[394468391,1763611831644,-300.0,0.00016994,2]
[394468392,1763611831653,-257.53466951,0.00016995,2]
[394468393,1763611831662,-2299.99999901,0.00017,2]
[394468394,1763611831672,-250.0,0.00017,2]
[394468395,1763611831681,-500.0,0.00017073,2]
[394468396,1763611831694,-500.0,0.00017073,2]
[394468398,1763611831703,-500.0,0.00017073,2]
[394468399,1763611831713,-500.0,0.00017073,2]
[394468400,1763611831723,-500.0,0.00017073,2]
[394468401,1763611831732,-500.0,0.00017073,2]
[394468402,1763611831741,-500.0,0.00017073,2]
[394468403,1763611831750,-300.0,0.00017082,2]
[394468404,1763611831759,-550.0,0.00017082,2]
[394468405,1763611831768,-1092.88987372,0.00017083,2]
[394468406,1763611831778,-197.07671469,0.00017083,2]
[394468407,1763611831787,-500.0,0.00017083,2]
[394468408,1763611831797,-500.0,0.00017083,2]
[394468409,1763611831807,-500.0,0.00017083,2]
[394468411,1763611831816,-500.0,0.00017083,2]
[394468412,1763611831825,-500.0,0.00017083,2]
[394468414,1763611831835,-500.0,0.00017083,2]
[394468415,1763611831844,-500.0,0.00017083,2]
[394468416,1763611831853,-500.0,0.00017083,2]
[394468417,1763611831864,-500.0,0.00017083,2]
[394468418,1763611831873,-500.0,0.00017083,2]
[394468419,1763611831883,-500.0,0.00017083,2]
[394468420,1763611831896,-500.0,0.00017083,2]
[394468421,1763611831905,-500.0,0.00017083,2]
[394468422,1763611831915,-500.0,0.00017083,2]
[394468423,1763611831925,-500.0,0.00017083,2]
[394468424,1763611831935,-500.0,0.00017083,2]
[394468425,1763611831945,-500.0,0.00017083,2]
[394468426,1763611831955,-500.0,0.00017083,2]
[394468427,1763611832178,-500.0,0.00017083,2]
[394468428,1763611832189,-500.0,0.00017083,2]
[394468429,1763611832199,-500.0,0.00017083,2]
[394468430,1763611832209,-500.0,0.00017083,2]
[394468431,1763611832222,-500.0,0.00017083,2]
[394468432,1763611832233,-500.0,0.00017083,2]
[394468433,1763611832243,-500.0,0.00017083,2]
[394468434,1763611832252,-500.0,0.00017083,2]
[394468435,1763611832262,-500.0,0.00017083,2]
[394468436,1763611832272,-500.0,0.00017083,2]
[394468437,1763611832282,-500.0,0.00017083,2]
[394468438,1763611832291,-500.0,0.00017083,2]
[394468439,1763611832301,-500.0,0.00017083,2]
[394468440,1763611832312,-500.0,0.00017083,2]
[394468441,1763611832321,-349.6333737,0.00017083,2]
[394468442,1763611832331,-500.0,0.00017083,2]
[394468443,1763611832340,-500.0,0.00017083,2]
[394468444,1763611832349,-500.0,0.00017083,2]
[394468445,1763611832359,-500.0,0.00017083,2]
[394468446,1763611832368,-500.0,0.00017083,2]
[394468447,1763611832377,-500.0,0.00017083,2]
[394468448,1763611832387,-650.0,0.00017083,2]
[394468449,1763611832396,-500.0,0.00017084,2]
[394468450,1763611832406,-500.0,0.00017084,2]
[394468451,1763611832418,-500.0,0.00017084,2]
[394468452,1763611832428,-101092.83818179,0.00017084,2]
[394468453,1763611832442,-712.17874627,0.00017084,2]
[394468454,1763611832453,-633.49960292,0.00017084,2]
[394468458,1763611837469,-1396.95745328,0.00017084,2]
[394468459,1763611837481,-696.74,0.00017084,2]
[394468460,1763611837492,-10875.00603394,0.00017084,2]
[394468461,1763611837523,-644592.7799818,0.00017084,2]
[394468462,1763611837533,-6903.60903285,0.00017093,2]
[394468463,1763611837543,-30555.0372,0.00017095,2]
[394468464,1763611837552,-1512.8865,0.00017095,2]
[394468465,1763611837562,-1295.287,0.00017095,2]
[394468466,1763611837571,-171.249,0.00017095,2]
[394468467,1763611837581,-620.05317204,0.00017095,2]
[394468468,1763611837590,-182.12419029,0.00017095,2]
[394468469,1763611837599,-218.67400939,0.00017169,2]
[394468470,1763611837608,-500.0,0.00017173,2]
[394468471,1763611837618,-500.0,0.00017173,2]
[394468472,1763611837629,-500.60626497,0.00017173,2]
[394468474,1763611837638,-502.32466866,0.00017173,2]
[394468475,1763611837648,-500.0,0.00017173,2]
[394468477,1763611837666,-409.97796895,0.00017173,2]
[394468478,1763611837679,-501.53350493,0.00017173,2]
[394468479,1763611837689,-500.0,0.00017173,2]
[394468480,1763611837699,-407.62088803,0.00017183,2]
[394468481,1763611837709,-620.05317198,0.00017184,2]
[394468482,1763611837718,-833.53,0.00017193,2]
[394468483,1763611837728,-6903.60903285,0.00017194,2]
[394468484,1763611837738,-500.0,0.00017194,2]
[394468486,1763611837747,-500.0,0.00017194,2]
[394468488,1763611837757,-500.0,0.00017194,2]
[394468491,1763611837767,-500.0,0.00017194,2]
[394468492,1763611837777,-500.0,0.00017194,2]
[394468493,1763611837786,-257.73915746,0.00017194,2]
[394468494,1763611837796,-811.7,0.00017194,2]
[394468495,1763611837805,-811.7,0.00017194,2]
[394468496,1763611837815,-811.7,0.00017194,2]
[394468497,1763611837825,-604.30481114,0.00017194,2]
[394468498,1763611837835,-500.0,0.00017194,2]
[394468499,1763611837844,-500.0,0.00017194,2]
[394468500,1763611837856,-500.0,0.00017194,2]
[394468501,1763611837866,-1000.0,0.00017195,2]
[394468502,1763611837876,-182.12419022,0.0001721,2]
[394468503,1763611837886,-8764.03619045,0.00017274,2]
[394468504,1763611837895,-620.05317198,0.00017274,2]
[394468505,1763611837907,-6903.60903285,0.00017295,2]
[394468506,1763611837916,-967.08,0.000173,2]
[394468507,1763611837928,-182.12419022,0.00017325,2]
[394468508,1763611837938,-8764.03619045,0.00017363,2]
[394468509,1763611837948,-620.05317198,0.00017363,2]
[394468510,1763611837957,-6903.60903285,0.00017396,2]
[394468511,1763611837967,-182.12419022,0.0001744,2]
[394468512,1763611837976,-257.53466951,0.00017447,2]
[394468513,1763611837987,-8764.03619045,0.00017453,2]
[394468514,1763611837997,-620.05317198,0.00017453,2]
[394468515,1763611838006,-833.53,0.00017467,2]
[394468516,1763611838019,-177.5,0.00017479,2]
[394468517,1763611838029,-500.0,0.00017494,2]
[394468518,1763611838038,-500.0,0.00017494,2]
[394468519,1763611838048,-500.0,0.00017494,2]
[394468520,1763611838058,-6903.60903285,0.00017496,2]
[394468521,1763611838068,-5400.0,0.000175,6]
[394468522,1763611838078,-550.68,0.00017534,2]
[394468523,1763611838087,-8764.03619045,0.00017542,2]
[394468524,1763611838097,-620.05317198,0.00017542,2]
[394468525,1763611838107,-182.12419022,0.00017555,2]
[394468526,1763611838117,-260.0,0.00017595,2]
[394468527,1763611838128,-150.0,0.00017595,2]
[394468528,1763611838140,-150.0,0.00017595,2]
[394468529,1763611838155,-150.0,0.00017595,2]
[394468530,1763611838166,-150.0,0.00017595,2]
[394468531,1763611838178,-150.0,0.00017595,2]
[394468532,1763611838188,-150.0,0.00017595,2]
[394468533,1763611838199,-150.0,0.00017595,2]
[394468534,1763611838209,-150.0,0.00017595,2]
[394468535,1763611838218,-150.0,0.00017595,2]
[394468536,1763611838232,-609.784,0.00017595,2]
[394468537,1763611838243,-575.0,0.00017595,2]
[394468538,1763611838253,-3434.0,0.00017595,2]
[394468539,1763611838263,-1319.0,0.00017595,2]
[394468540,1763611838274,-1600.0,0.00017595,2]
[394468541,1763611838284,-822.0,0.00017595,2]
[394468542,1763611838294,-1256.0,0.00017595,2]
[394468543,1763611838303,-799.021,0.00017595,2]
[394468544,1763611838312,-6494.0,0.00017595,2]
[394468545,1763611838322,-561.0,0.00017595,2]
[394468546,1763611838332,-708.819,0.00017595,2]
[394468547,1763611838342,-6903.60903285,0.00017597,2]
[394468548,1763611838351,-1000.0,0.000176,6]
[394468549,1763611838362,-495.51149175,0.00017621,2]
[394468550,1763611838372,-403.59576612,0.00017621,2]
[394468551,1763611838382,-1011.48237159,0.00017621,2]
[394468552,1763611838392,-1000.0,0.00017621,2]
[394468553,1763611838402,-500.0,0.00017621,2]
[394468554,1763611838411,-153.21806903,0.00017621,2]
[394468555,1763611838426,-500.0,0.00017631,2]
[394468556,1763611838436,-811.7,0.00017631,2]
[394468557,1763611838446,-500.0,0.00017631,2]
[394468558,1763611838456,-8764.03619045,0.00017632,2]
[394468559,1763611838465,-620.05317198,0.00017632,2]
[394468560,1763611838475,-222.41932101,0.00017662,2]
[394468561,1763611838484,-182.12419022,0.0001767,2]
[394468562,1763611838494,-6903.60903285,0.00017698,2]
[394468563,1763611838504,-1000.0,0.000177,6]
[394468564,1763611838514,-1011.0,0.000177,2]
[394468565,1763611838526,-1464.75324384,0.0001772,2]
[394468566,1763611838536,-1000.0,0.00017721,2]
[394468567,1763611838545,-500.0,0.00017721,2]
[394468568,1763611838555,-8764.03619045,0.00017721,2]
[394468569,1763611838565,-620.05317198,0.00017721,2]
[394468570,1763611838574,-833.53,0.00017741,2]
[394468571,1763611838584,-168.0,0.00017779,2]
[394468572,1763611838593,-182.12419022,0.00017785,2]
[394468573,1763611838605,-6903.60903285,0.00017799,2]
[394468574,1763611838617,-1000.0,0.000178,6]
[394468575,1763611838627,-8764.03619045,0.00017811,2]
[394468576,1763611838636,-620.05317198,0.00017811,2]
[394468577,1763611838645,-26197.0,0.00017816,2]
[394468578,1763611838656,-300.0,0.00017819,2]
[394468579,1763611838665,-200.0,0.00017855,2]
[394468580,1763611838675,-200.0,0.00017856,2]
[394468581,1763611838684,-500.0,0.00017873,2]
[394468582,1763611838694,-500.47789219,0.00017873,2]
[394468583,1763611838703,-500.0,0.00017873,2]
[394468584,1763611838712,-500.0,0.00017873,2]
[394468585,1763611838722,-500.0,0.00017873,2]
[394468586,1763611838732,-25000.0,0.00017874,3]
[394468587,1763611838741,-479.55759781,0.00017874,3]
[394468588,1763611838751,-25000.0,0.00017882,3]
[394468589,1763611838760,-479.55759781,0.00017882,3]
[394468590,1763611838770,-500.0,0.0001789,2]
[394468591,1763611838780,-1820.68505313,0.0001789,2]
[394468592,1763611838790,-25000.0,0.00017891,3]
[394468593,1763611838799,-166.53672251,0.00017898,2]
[394468594,1763611838809,-257.53466951,0.00017898,2]
[394468595,1763611838818,-315.08513889,0.00017899,2]
[394468596,1763611838828,-10173.06205764,0.000179,2]
[394468597,1763611838838,-179.96414648,0.000179,3]
[394468598,1763611838848,-166.5367225,0.000179,2]
[394468599,1763611838857,-25000.0,0.000179,3]
[394468600,1763611838867,-8764.03619045,0.000179,2]
[394468601,1763611838877,-620.05317198,0.000179,2]
[394468602,1763611838886,-1000.0,0.000179,6]
[394468603,1763611838896,-182.12419022,0.000179,2]
[394468604,1763611838906,-27793.82354216,0.000179,2]
[394468605,1763611838915,-515.35190765,0.000179,2]
[394468606,1763611838926,-6903.60903285,0.000179,2]
[394468607,1763611838936,-10309.04130668,0.000179,2]
[394468608,1763611838945,-4783.0,0.000179,2]
[394468609,1763611838955,-168.0,0.00017901,2]
[394468610,1763611838964,-168.0,0.00017903,2]
[394468611,1763611838974,-500.0,0.00017973,2]
[394468612,1763611838984,-500.0,0.00017973,2]
[394468613,1763611838993,-160.73608923,0.00017973,2]
[394468614,1763611839003,-500.0,0.00017973,2]
[394468615,1763611839013,-500.0,0.00017973,2]